bitfinex/quotes_SOLUSD_20251103
["timestamp","ask_amount","ask_price","bid_price","bid_amount"]
[1762180403877,0.7,175.6,175.56,7.24888154]
[1762180404175,0.7,175.6,175.54,7.24888154]
[1762180404516,27.35009981,175.64,175.56,7.24888154]
[1762180404517,7.94888154,175.62,175.56,7.24888154]
[1762180404689,7.94888154,175.62,175.53,0.66]
[1762180404690,0.7,175.62,175.57,7.24888154]
[1762180404862,0.7,175.62,175.56,7.24888154]
[1762180404863,7.94888154,175.62,175.56,7.24888154]
[1762180405387,7.94888154,175.62,175.53,0.66]
[1762180405388,0.7,175.62,175.57,7.24888154]
[1762180405673,9.78882769,175.61,175.57,7.24888154]
[1762180405877,9.78882769,175.61,175.58,5.69540949]
[1762180406058,9.78882769,175.61,175.58,19.93393323]
[1762180406657,0.7,175.65,175.59,0.66]
[1762180406879,17.03770923,175.64,175.59,7.24888154]
[1762180407184,17.03770923,175.62,175.58,5.69540949]
[1762180407852,9.78882769,175.62,175.58,14.88852374]
[1762180408275,0.7,175.64,175.54,5.6967073]
[1762180408276,9.78882769,175.58,175.54,5.6967073]
[1762180408469,9.78882769,175.58,175.52,5.69735642]
[1762180408661,7.24888154,175.53,175.52,5.69735642]
[1762180408968,7.94888154,175.53,175.5,5.69800569]
[1762180409170,7.94888154,175.53,175.46,0.65]
[1762180409171,7.24888154,175.51,175.49,5.69828902]
[1762180409385,7.24888154,175.51,175.49,6.34828902]
[1762180409590,7.24888154,175.5,175.47,5.69897988]
[1762180409756,7.24888154,175.51,175.46,5.69925279]
[1762180409961,7.24888154,175.51,175.46,6.34925279]
[1762180410270,0.7,175.53,175.46,6.34925279]
[1762180410271,7.24888154,175.52,175.47,0.65]
[1762180410861,17.03770923,175.48,175.46,5.69925279]
[1762180411068,17.03770923,175.48,175.44,5.6999544]
[1762180411380,9.78882769,175.49,175.45,0.65]
[1762180411561,17.03770923,175.51,175.45,7.89888154]
[1762180411763,9.78882769,175.51,175.45,7.89888154]
[1762180412086,9.78882769,175.51,175.43,20.592]
[1762180412087,9.78882769,175.52,175.47,7.24888154]
[1762180412462,7.24888154,175.51,175.46,19.94756639]
[1762180412767,7.24888154,175.51,175.46,20.59756639]
[1762180412976,7.24888154,175.51,175.47,0.65]
[1762180413760,7.24888154,175.51,175.46,27.19644793]
[1762180413986,7.24888154,175.51,175.46,27.84644793]
[1762180414687,7.24888154,175.51,175.47,0.65]
[1762180414863,17.03770923,175.52,175.47,0.65]
[1762180415063,9.78882769,175.55,175.49,7.24888154]
[1762180415379,17.03770923,175.55,175.49,7.24888154]
[1762180415591,17.73770923,175.55,175.49,7.24888154]
[1762180415882,17.73770923,175.55,175.5,19.94301993]
[1762180416082,10.48882769,175.55,175.5,27.19190147]
[1762180416265,10.48882769,175.55,175.5,27.84190147]
[1762180416594,9.78882769,175.58,175.53,7.24888154]
[1762180416898,0.7,175.59,175.55,7.24888154]
[1762180417098,7.94888154,175.61,175.55,7.24888154]
[1762180417292,0.7,175.6,175.55,7.24888154]
[1762180417675,0.7,175.6,175.55,7.89888154]
[1762180417999,7.24888154,175.58,175.55,5.69638279]
[1762180418170,17.03770923,175.59,175.55,5.69638279]
[1762180418368,0.14216157,175.63,175.55,5.69638279]
[1762180418369,9.78882769,175.63,175.56,7.89888154]
[1762180418686,9.78882769,175.6,175.55,27.18622132]
[1762180418887,9.78882769,175.6,175.55,27.83622132]
[1762180419090,9.78882769,175.61,175.56,7.89888154]
[1762180419511,9.78882769,175.61,175.57,0.65]
[1762180419685,9.78882769,175.61,175.57,7.89888154]
[1762180420392,17.73770923,175.61,175.58,5.69540949]
[1762180420979,7.94888154,175.6,175.58,5.69540949]
[1762180421290,7.94888154,175.6,175.54,7.24888154]
[1762180421291,9.78882769,175.58,175.57,5.69568552]
[1762180421877,9.78882769,175.58,175.53,20.592]
[1762180421878,17.73770923,175.58,175.53,20.592]
[1762180422183,9.78882769,175.56,175.53,20.592]
[1762180422375,9.78882769,175.56,175.54,5.69664769]
[1762180422582,0.14216157,175.62,175.54,27.83729748]
[1762180422906,9.78882769,175.61,175.56,7.24888154]
[1762180423077,9.78882769,175.61,175.55,0.65]
[1762180423078,17.03770923,175.61,175.55,7.89888154]
[1762180423404,17.73770923,175.61,175.55,0.65]
[1762180423571,17.03770923,175.59,175.54,19.93841594]
[1762180423977,17.73770923,175.59,175.54,20.58841594]
[1762180424173,17.03770923,175.57,175.54,19.93841594]
[1762180424393,17.73770923,175.57,175.54,5.69664769]
[1762180424576,17.03770923,175.57,175.52,19.94060181]
[1762180424774,17.03770923,175.57,175.53,0.65]
[1762180425579,17.03770923,175.57,175.52,19.94060181]
[1762180425787,17.73770923,175.57,175.52,19.94060181]
[1762180426183,20.73416157,175.62,175.53,0.65]
[1762180426377,0.7,175.61,175.54,7.24888154]
[1762180426569,9.78882769,175.61,175.55,7.24888154]
[1762180426769,9.78882769,175.61,175.56,7.24888154]
[1762180426974,27.84088154,175.62,175.57,0.65]
[1762180426975,9.78882769,175.62,175.57,0.65]
[1762180427276,9.78882769,175.62,175.55,28.49088154]
[1762180427277,7.24888154,175.61,175.55,28.49088154]
[1762180427484,17.03770923,175.6,175.56,5.69605832]
[1762180428097,9.78882769,175.6,175.56,6.34605832]
[1762180428506,9.78882769,175.6,175.56,20.58620413]
[1762180428886,17.03770923,175.6,175.56,20.58620413]
[1762180429083,9.78882769,175.59,175.56,19.93620413]
[1762180429570,10.48882769,175.6,175.56,19.93620413]
[1762180429776,17.03770923,175.57,175.56,5.69605832]
[1762180430374,17.03770923,175.57,175.53,5.69703184]
[1762180430700,7.24888154,175.56,175.53,20.58961145]
[1762180430901,9.78882769,175.57,175.54,0.65]
[1762180431410,17.03770923,175.57,175.54,0.65]
[1762180431782,17.03770923,175.57,175.55,5.69638279]
[1762180433306,9.78882769,175.57,175.55,5.69638279]
[1762180433500,17.03770923,175.57,175.55,5.69638279]
[1762180433707,7.24888154,175.56,175.55,5.69638279]
[1762180433910,17.03770923,175.57,175.53,19.93961145]
[1762180434112,17.03770923,175.57,175.53,20.58961145]
[1762180434910,17.03770923,175.57,175.53,19.93961145]
[1762180435101,7.24888154,175.54,175.52,5.69724822]
[1762180435489,7.24888154,175.53,175.52,5.69724822]
[1762180435824,7.24888154,175.53,175.48,5.69865511]
[1762180436007,13.57821382,175.52,175.47,6.34892229]
[1762180436180,14.27821382,175.52,175.47,19.94637199]
[1762180436501,7.24888154,175.48,175.47,5.69892229]
[1762180437194,7.24888154,175.48,175.47,6.34892229]
[1762180437708,9.78882769,175.5,175.47,6.34892229]
[1762180437909,7.24888154,175.51,175.49,5.69833038]
[1762180438606,7.24888154,175.5,175.49,5.69833038]
[1762180439798,7.24888154,175.52,175.49,20.59415635]
[1762180440002,7.24888154,175.52,175.5,0.65]
[1762180440198,7.24888154,175.52,175.47,20.59642958]
[1762180440409,7.24888154,175.52,175.48,0.65]
[1762180441298,7.24888154,175.49,175.47,5.69897988]
[1762180441605,7.24888154,175.48,175.47,5.69897988]
[1762180441785,7.24888154,175.48,175.39,104.0]
[1762180441786,11.74426347,175.48,175.42,5.70060426]
[1762180441991,7.24888154,175.43,175.42,5.70060426]
[1762180442208,11.94323057,175.5,175.42,5.70060426]
[1762180442209,7.24888154,175.45,175.43,0.69]
[1762180442415,0.7,175.5,175.43,0.69]
[1762180442416,13.58228784,175.49,175.43,0.69]
[1762180442592,7.24888154,175.46,175.43,0.69]
[1762180443189,7.24888154,175.47,175.43,0.69]
[1762180443396,9.78882769,175.52,175.45,7.24888154]
[1762180443592,11.04388977,175.51,175.45,7.24888154]
[1762180443802,7.24888154,175.5,175.46,0.69]
[1762180444119,7.24888154,175.49,175.44,19.9498404]
[1762180444294,7.24888154,175.48,175.44,19.9498404]
[1762180444608,7.24888154,175.5,175.45,0.69]
[1762180444808,7.24888154,175.53,175.47,7.24888154]
[1762180445306,7.24888154,175.52,175.47,0.69]
[1762180445688,0.7,175.54,175.47,0.69]
[1762180445689,7.24888154,175.54,175.47,28.53088154]
[1762180446014,7.24888154,175.54,175.48,19.9452929]
[1762180446189,7.72282757,175.58,175.5,7.24888154]
[1762180446190,3.79938604,175.55,175.5,7.24888154]
[1762180446516,3.79938604,175.54,175.49,0.69]
[1762180446700,3.79938604,175.55,175.5,7.24888154]
[1762180446896,3.79938604,175.54,175.5,7.24888154]
[1762180447100,11.04826758,175.55,175.51,0.69]
[1762180447309,7.24888154,175.53,175.48,20.6352929]
[1762180447493,7.24888154,175.5,175.48,19.9452929]
[1762180447691,7.24888154,175.53,175.49,0.69]
[1762180447932,7.24888154,175.53,175.48,5.69865511]
[1762180447933,7.24888154,175.5,175.48,5.69865511]
[1762180448300,7.24888154,175.49,175.48,5.69865511]
[1762180448499,3.80004231,175.51,175.49,0.69]
[1762180448702,11.04892385,175.55,175.49,0.69]
[1762180449003,7.24888154,175.55,175.49,7.93888154]
[1762180449203,7.24888154,175.54,175.5,0.69]
[1762180449555,7.24888154,175.52,175.48,40.5372929]
[1762180449722,7.24888154,175.52,175.48,41.2272929]
[1762180449896,7.24888154,175.52,175.49,0.69]
[1762180450097,7.24888154,175.53,175.5,19.94301993]
[1762180450918,3.80059519,175.54,175.5,19.94301993]
[1762180450919,7.24888154,175.52,175.5,19.94301993]
[1762180451724,7.24888154,175.53,175.5,19.94301993]
[1762180452112,7.24888154,175.53,175.5,14.24501424]
[1762180452422,10.48882769,175.55,175.49,5.69833038]
[1762180452423,7.24888154,175.51,175.49,5.69833038]
[1762180452614,11.04947673,175.5,175.45,21.282]
[1762180452817,7.24888154,175.47,175.44,14.24908706]
[1762180453024,7.24888154,175.47,175.45,0.69]
[1762180453704,7.24888154,175.48,175.45,20.63870333]
[1762180453903,7.24888154,175.47,175.45,20.63870333]
[1762180454402,7.24888154,175.47,175.45,19.94870333]
[1762180455127,7.24888154,175.48,175.45,20.63870333]
[1762180456117,4.5009643,175.5,175.43,20.64097759]
[1762180456295,7.24888154,175.48,175.43,20.64097759]
[1762180456697,7.24888154,175.48,175.44,0.69]
[1762180458030,3.79989042,175.5,175.44,0.69]
[1762180458227,7.24888154,175.52,175.46,7.24888154]
[1762180458526,7.24888154,175.52,175.45,40.54070333]
[1762180458527,7.24888154,175.54,175.48,27.84088154]
[1762180459010,11.04953273,175.54,175.49,0.69]
[1762180459207,7.24888154,175.5,175.45,123.94870333]
[1762180459414,7.24888154,175.47,175.45,19.94870333]
[1762180460002,7.24888154,175.47,175.45,20.63870333]
[1762180460503,7.24888154,175.47,175.45,19.94870333]
[1762180460814,7.24888154,175.46,175.45,5.69962952]
[1762180461406,7.94888154,175.46,175.45,5.69962952]
[1762180461727,7.24888154,175.46,175.45,5.69962952]
[1762180462035,7.94888154,175.46,175.44,5.69989912]
[1762180462200,7.24888154,175.46,175.41,20.64325237]
[1762180462404,4.88964724,175.45,175.41,20.64325237]
[1762180462921,4.88964724,175.46,175.42,0.69]
[1762180463301,4.88964724,175.48,175.42,5.57964724]
[1762180463500,4.88964724,175.48,175.42,0.69]
[1762180463700,4.88964724,175.48,175.44,20.592]
[1762180464131,4.88964724,175.48,175.46,5.69930468]
[1762180464623,9.78882769,175.51,175.46,5.69930468]
[1762180464624,9.78882769,175.51,175.47,0.69]
[1762180464825,3.79934491,175.54,175.47,0.69]
[1762180465016,3.79997637,175.55,175.48,4.88964724]
[1762180465211,4.88964724,175.55,175.5,20.592]
[1762180465411,8.68962361,175.55,175.5,20.592]
[1762180465613,0.14216157,175.6,175.51,0.69]
[1762180465614,3.79997637,175.56,175.51,0.69]
[1762180465808,4.88964724,175.57,175.51,5.57964724]
[1762180466003,4.88964724,175.57,175.51,0.69]
[1762180466204,4.88964724,175.53,175.52,19.94074748]
[1762180466414,4.88964724,175.54,175.52,19.94074748]
[1762180466813,4.88964724,175.53,175.52,5.69735642]
[1762180467216,4.88964724,175.54,175.52,6.38735642]
[1762180467630,4.88964724,175.53,175.52,5.69735642]
[1762180468224,4.88964724,175.53,175.5,19.94290202]
[1762180468433,4.88964724,175.53,175.5,20.63290202]
[1762180469146,4.88964724,175.53,175.5,19.94290202]
[1762180469315,4.88964724,175.52,175.5,19.94290202]
[1762180469716,4.88964724,175.52,175.49,20.592]
[1762180469717,9.78882769,175.5,175.48,5.69865511]
[1762180469925,4.88964724,175.49,175.48,5.69865511]
[1762180470124,4.88964724,175.5,175.47,19.94585184]
[1762180470339,4.88964724,175.48,175.47,5.69897988]
[1762180471363,8.69104332,175.5,175.47,20.63642958]
[1762180471560,4.88964724,175.51,175.48,0.69]
[1762180472223,4.88964724,175.51,175.49,5.69833038]
[1762180472629,4.88964724,175.5,175.49,5.69833038]
[1762180472823,15.36847493,175.5,175.47,5.69874594]
[1762180473020,4.88964724,175.48,175.47,5.69874594]
[1762180473840,4.88964724,175.48,175.44,20.592]
[1762180474053,4.88964724,175.45,175.4,0.7]
[1762180474249,4.88964724,175.5,175.38,5.70190443]
[1762180474250,4.49245083,175.44,175.41,5.70092925]
[1762180474448,9.78882769,175.47,175.4,5.70120002]
[1762180474619,0.14216157,175.45,175.32,5.7038558]
[1762180474815,9.78882769,175.43,175.33,0.7]
[1762180475020,9.78882769,175.41,175.32,5.7038558]
[1762180475243,9.78882769,175.39,175.3,0.7]
[1762180475428,4.88964724,175.34,175.31,5.80415307]
[1762180475630,4.88964724,175.35,175.31,6.50415307]
[1762180476048,4.88964724,175.35,175.32,0.7]
[1762180476244,4.88964724,175.34,175.33,5.70353048]
[1762180476559,4.88964724,175.35,175.33,5.70353048]
[1762180476766,4.88964724,175.34,175.32,0.7]
[1762180476969,4.88964724,175.33,175.32,5.70380561]
[1762180477143,4.88964724,175.33,175.31,0.1]
[1762180477347,4.88964724,175.32,175.31,5.80412268]
[1762180477657,4.88964724,175.33,175.31,5.80412268]
[1762180478062,0.69,175.36,175.31,20.06457559]
[1762180478262,4.88964724,175.34,175.31,20.06457559]
[1762180478650,20.592,175.39,175.32,0.7]
[1762180478857,4.88964724,175.36,175.32,0.7]
[1762180479073,4.88964724,175.34,175.31,20.06457559]
[1762180479368,4.88964724,175.33,175.31,5.80412268]
[1762180480068,4.88964724,175.34,175.31,20.76457559]
[1762180480368,4.88964724,175.34,175.31,0.1]
[1762180480369,9.78882769,175.33,175.31,0.1]
[1762180480566,14.67847493,175.32,175.31,0.1]
[1762180480786,10.47882769,175.32,175.31,0.1]
[1762180481077,15.36847493,175.32,175.31,0.1]
[1762180481780,15.36847493,175.32,175.31,5.80418116]
[1762180481955,14.67847493,175.32,175.31,5.80418116]
[1762180482160,15.36847493,175.32,175.31,5.80418116]
[1762180483263,15.36847493,175.32,175.31,0.1]
[1762180483661,15.36847493,175.32,175.31,5.80418116]
[1762180484058,15.36847493,175.32,175.31,0.1]
[1762180484368,9.78882769,175.32,175.31,0.1]
[1762180484552,14.67847493,175.32,175.31,5.80418116]
[1762180485071,15.36847493,175.32,175.31,5.80418116]
[1762180485272,10.47882769,175.32,175.31,5.80418116]
[1762180485470,15.36847493,175.32,175.31,0.1]
[1762180485858,9.78882769,175.32,175.31,0.1]
[1762180486062,9.78882769,175.32,175.31,5.80418116]
[1762180487452,15.36847493,175.32,175.31,0.1]
[1762180487864,15.36847493,175.32,175.31,5.80418116]
[1762180487865,14.67847493,175.32,175.31,5.80418116]
[1762180488093,14.67847493,175.35,175.31,20.76463407]
[1762180488255,14.67847493,175.35,175.31,20.06463407]
[1762180488455,15.36847493,175.35,175.31,20.06463407]
[1762180488669,10.47882769,175.35,175.31,20.06463407]
[1762180488858,15.36847493,175.35,175.31,20.06463407]
[1762180489283,10.47882769,175.35,175.31,20.06463407]
[1762180489609,0.69,175.41,175.32,5.58964724]
[1762180489875,4.88964724,175.38,175.32,0.7]
[1762180490085,4.88964724,175.36,175.31,20.76463407]
[1762180490264,4.88964724,175.36,175.32,0.7]
[1762180490458,9.78882769,175.36,175.33,19.96235669]
[1762180490870,4.88964724,175.38,175.34,0.7]
[1762180491074,14.67847493,175.38,175.34,0.7]
[1762180492002,4.88964724,175.36,175.33,19.96235669]
[1762180492204,4.88964724,175.35,175.33,5.70353048]
[1762180492497,4.88964724,175.36,175.32,19.96349531]
[1762180492706,5.57964724,175.36,175.32,19.96349531]
[1762180493005,4.88964724,175.37,175.33,0.7]
[1762180493183,4.88964724,175.36,175.32,19.96349531]
[1762180493569,4.88964724,175.36,175.32,20.66349531]
[1762180493991,4.88964724,175.37,175.33,0.7]
[1762180494296,9.78882769,175.38,175.33,0.7]
[1762180494468,4.88964724,175.39,175.34,19.9612182]
[1762180495085,5.57964724,175.38,175.34,19.9612182]
[1762180495288,4.88964724,175.38,175.34,19.9612182]
[1762180495471,5.57964724,175.38,175.34,19.9612182]
[1762180496097,9.78882769,175.36,175.34,19.9612182]
[1762180496299,4.88964724,175.36,175.33,5.70347592]
[1762180496798,9.78882769,175.35,175.33,19.96230213]
[1762180496972,15.36847493,175.35,175.33,19.96230213]
[1762180497301,9.78882769,175.35,175.33,19.96230213]
[1762180497609,4.88964724,175.37,175.33,20.66230213]
[1762180498375,4.88964724,175.37,175.33,14.25882621]
[1762180498692,4.88964724,175.37,175.33,14.95882621]
[1762180499292,4.88964724,175.36,175.33,14.25882621]
[1762180499669,4.88964724,175.37,175.33,14.25882621]
[1762180499890,14.67847493,175.41,175.34,5.58964724]
[1762180500111,4.88964724,175.39,175.34,0.7]
[1762180500273,2.98133262,175.47,175.38,4.88964724]
[1762180500469,2.98133262,175.47,175.36,20.592]
[1762180500470,4.88964724,175.43,175.4,5.70125427]
[1762180500774,4.88964724,175.41,175.4,5.70125427]
[1762180500985,4.88964724,175.42,175.4,19.95438995]
[1762180501178,4.88964724,175.42,175.4,5.70125427]
[1762180501383,4.88964724,175.42,175.34,34.75483276]
[1762180501384,9.78882769,175.4,175.38,5.70170042]
[1762180501581,5.57964724,175.39,175.35,14.25639728]
[1762180501891,4.88964724,175.37,175.35,14.25639728]
[1762180502305,4.88964724,175.42,175.36,0.72]
[1762180502601,14.67847493,175.44,175.37,24.84745073]
[1762180502804,4.88964724,175.43,175.37,24.84745073]
[1762180502997,9.78882769,175.42,175.36,5.70249067]
[1762180503178,14.67847493,175.38,175.36,5.70249067]
[1762180503373,4.88964724,175.37,175.36,5.70249067]
[1762180503773,14.67847493,175.37,175.36,5.70249067]
[1762180503986,14.67847493,175.37,175.33,14.97835962]
[1762180503987,9.78882769,175.36,175.34,5.70294692]
[1762180504190,4.88964724,175.35,175.34,5.70294692]
[1762180504390,15.37847493,175.35,175.31,0.1]
[1762180504592,4.88964724,175.33,175.31,5.80414922]
[1762180504800,4.88964724,175.35,175.31,20.06460213]
[1762180505098,9.78882769,175.37,175.32,0.72]
[1762180505682,4.88964724,175.38,175.32,0.72]
[1762180506086,4.88964724,175.36,175.32,0.72]
[1762180506501,4.88964724,175.38,175.33,19.96235669]
[1762180506710,9.78882769,175.44,175.36,4.88964724]
[1762180507015,9.78882769,175.42,175.36,4.88964724]
[1762180507186,4.88964724,175.45,175.38,4.88964724]
[1762180507384,3.77596473,175.48,175.4,20.592]
[1762180507687,4.88964724,175.45,175.4,20.592]
[1762180508087,0.7,175.45,175.4,0.72]
[1762180508288,4.88964724,175.43,175.39,20.592]
[1762180508512,4.88964724,175.43,175.4,19.95438995]
[1762180508701,4.88964724,175.44,175.4,20.67438995]
[1762180509100,4.88964724,175.43,175.4,5.70125427]
[1762180509513,4.88964724,175.42,175.4,5.70125427]
[1762180510499,4.88964724,175.42,175.38,14.97468997]
[1762180510500,4.88964724,175.41,175.39,5.70157933]
[1762180510698,14.67847493,175.4,175.39,5.70157933]
[1762180511014,4.88964724,175.41,175.39,5.70157933]
[1762180511316,4.88964724,175.42,175.39,19.95552767]
[1762180511912,4.88964724,175.42,175.39,20.67552767]
[1762180512305,4.88964724,175.42,175.39,19.95552767]
[1762180512499,4.88964724,175.42,175.39,0.72]
[1762180512904,4.88964724,175.43,175.39,0.72]
[1762180513313,4.88964724,175.41,175.37,19.95780349]
[1762180513531,0.7,175.42,175.37,19.95780349]
[1762180513532,4.88964724,175.4,175.37,19.95780349]
[1762180513718,4.88964724,175.4,175.37,20.67780349]
[1762180514030,4.88964724,175.4,175.38,0.72]
[1762180514233,4.88964724,175.41,175.38,0.72]
[1762180514406,4.88964724,175.39,175.37,19.95780349]
[1762180514610,4.88964724,175.4,175.37,19.95780349]
[1762180514937,4.88964724,175.42,175.38,0.72]
[1762180515305,3.79181183,175.43,175.38,0.72]
[1762180515306,4.88964724,175.43,175.38,0.72]
[1762180515534,3.79394724,175.42,175.38,0.72]
[1762180515718,4.88964724,175.42,175.38,0.72]
[1762180516032,10.48882769,175.44,175.38,0.72]
[1762180516235,4.88964724,175.42,175.38,0.72]
[1762180516414,10.48882769,175.44,175.38,0.72]
[1762180516617,4.88964724,175.42,175.39,19.95552767]
[1762180516927,4.88964724,175.4,175.37,5.70222957]
[1762180517104,4.88964724,175.38,175.37,5.70222957]
[1762180517304,4.88964724,175.38,175.33,20.592]
[1762180517531,0.14216157,175.41,175.33,20.592]
[1762180517719,4.88964724,175.34,175.31,0.1]
[1762180517925,10.48882769,175.37,175.31,6.52413532]
[1762180518140,3.79670929,175.36,175.31,20.78458823]
[1762180518328,3.79670929,175.36,175.32,0.72]
[1762180518329,4.88964724,175.36,175.32,0.72]
[1762180518629,4.88964724,175.36,175.33,5.70353048]
[1762180518832,4.88964724,175.35,175.33,19.96235669]
[1762180519005,4.88964724,175.36,175.33,20.68235669]
[1762180519201,4.88964724,175.35,175.33,5.70353048]
[1762180519408,9.78882769,175.36,175.33,5.70353048]
[1762180519609,4.88964724,175.39,175.34,0.72]
[1762180519841,3.79948943,175.38,175.34,0.72]
[1762180520022,4.88964724,175.39,175.34,0.72]
[1762180520329,9.78882769,175.4,175.34,0.72]
[1762180520330,4.88964724,175.38,175.34,0.72]
[1762180520512,3.79970861,175.39,175.35,19.96007983]
[1762180520709,10.48882769,175.42,175.35,19.96007983]
[1762180520710,4.88964724,175.42,175.35,19.96007983]
[1762180520925,4.88964724,175.41,175.36,0.72]
[1762180521437,8.68979343,175.42,175.36,0.72]
[1762180521621,10.48882769,175.46,175.38,20.592]
[1762180521807,4.88964724,175.43,175.38,20.592]
[1762180522008,4.88964724,175.41,175.38,20.592]
[1762180522209,4.88964724,175.41,175.35,19.96007983]
[1762180522511,4.88964724,175.41,175.35,20.68007983]
[1762180522512,4.88964724,175.39,175.35,20.68007983]
[1762180522717,4.88964724,175.41,175.36,0.72]
[1762180522917,13.58810229,175.45,175.36,0.72]
[1762180523127,8.68892184,175.44,175.36,5.60964724]
[1762180523320,4.88964724,175.44,175.36,5.60964724]
[1762180523523,4.88964724,175.43,175.37,0.72]
[1762180523838,9.78882769,175.49,175.38,25.48164724]
[1762180524133,4.88964724,175.43,175.38,20.592]
[1762180524333,4.4993047,175.48,175.38,20.592]
[1762180524334,7.25664042,175.42,175.38,20.592]
[1762180524539,7.25664042,175.42,175.37,0.72]
[1762180524540,7.25664042,175.42,175.4,5.70125427]
[1762180525034,7.25664042,175.42,175.4,19.95438995]
[1762180525236,7.25664042,175.41,175.38,5.70165222]
[1762180525451,4.74375432,175.47,175.38,5.70165222]
[1762180525452,10.48882769,175.44,175.38,5.70165222]
[1762180525627,7.25664042,175.4,175.38,19.95641331]
[1762180526137,7.25664042,175.39,175.38,19.95641331]
[1762180526314,7.25664042,175.39,175.35,49.82639977]
[1762180526315,7.25664042,175.39,175.35,21.312]
[1762180526515,7.25664042,175.36,175.32,7.25664042]
[1762180526723,7.25664042,175.33,175.32,7.25664042]
[1762180527018,7.25664042,175.33,175.3,5.70449375]
[1762180527225,7.25664042,175.33,175.31,6.49413454]
[1762180527438,7.25664042,175.32,175.31,5.80418116]
[1762180527632,7.25664042,175.33,175.31,5.80418116]
[1762180527821,9.78882769,175.34,175.31,0.1]
[1762180528022,7.25664042,175.32,175.31,0.1]
[1762180528216,9.78882769,175.32,175.31,0.1]
[1762180528437,17.04546811,175.32,175.31,0.1]
[1762180529442,9.78882769,175.32,175.31,5.80418116]
[1762180529620,7.25664042,175.35,175.31,5.80418116]
[1762180529823,7.25664042,175.33,175.31,20.06463407]
[1762180530227,20.592,175.37,175.31,0.1]
[1762180530228,17.76546811,175.32,175.31,0.1]
[1762180530439,17.04546811,175.32,175.31,0.1]
[1762180530831,9.78882769,175.32,175.31,5.80418116]
[1762180531026,17.04546811,175.32,175.31,5.80418116]
[1762180531229,17.04546811,175.32,175.31,0.1]
[1762180531428,10.50882769,175.32,175.31,0.1]
[1762180531634,17.04546811,175.32,175.31,0.1]
[1762180531946,17.76546811,175.32,175.31,0.1]
[1762180532646,21.56534798,175.32,175.31,0.1]
[1762180533355,14.30870756,175.32,175.31,0.1]
[1762180533653,17.73546811,175.32,175.31,0.1]
[1762180533838,17.04546811,175.32,175.31,5.80418116]
[1762180534148,9.78882769,175.32,175.31,5.80418116]
[1762180534552,7.25664042,175.33,175.31,5.80418116]
[1762180535031,20.73416157,175.37,175.32,0.67]
[1762180535032,9.78882769,175.37,175.32,0.67]
[1762180535230,7.25664042,175.33,175.31,5.80418116]
[1762180535835,9.78882769,175.34,175.31,20.06463407]
[1762180536156,7.25664042,175.33,175.31,5.80418116]
[1762180536528,7.25664042,175.35,175.32,0.67]
[1762180536925,3.79969742,175.36,175.33,5.70353048]
[1762180537235,7.25664042,175.34,175.33,5.70353048]
[1762180537744,9.78882769,175.33,175.31,0.1]
[1762180538047,17.04546811,175.32,175.31,0.1]
[1762180538231,17.73546811,175.32,175.31,0.1]
[1762180538553,21.67542364,175.32,175.31,0.1]
[1762180538752,21.53326207,175.32,175.31,0.1]
[1762180540358,17.73546811,175.32,175.31,0.1]
[1762180540537,17.04546811,175.32,175.31,0.1]
[1762180540725,17.04546811,175.32,175.31,5.80418116]
[1762180540726,9.78882769,175.32,175.31,5.80418116]
[1762180540932,17.04546811,175.32,175.31,5.80418116]
[1762180541151,17.73546811,175.32,175.31,0.1]
[1762180541359,21.67318117,175.32,175.31,0.1]
[1762180541744,17.87762968,175.32,175.31,0.1]
[1762180541934,21.67271759,175.32,175.31,0.1]
[1762180542531,77.37657339,175.32,175.31,0.1]
[1762180543155,77.37657339,175.32,175.29,0.1]
[1762180543156,9.93098926,175.31,175.29,0.1]
[1762180543457,17.73546811,175.3,175.29,0.1]
[1762180543660,21.53055602,175.3,175.29,0.1]
[1762180546453,21.53055602,175.3,175.19,0.1]
[1762180546454,50.0,175.24,175.19,0.1]
[1762180546643,17.04546811,175.2,175.19,0.1]
[1762180546962,17.04546811,175.2,175.14,5.80969269]
[1762180546963,9.78882769,175.19,175.14,5.80969269]
[1762180547180,17.04546811,175.15,175.14,5.80969269]
[1762180547538,17.04546811,175.15,175.14,0.1]
[1762180547539,17.73546811,175.15,175.14,0.1]
[1762180547852,9.78882769,175.15,175.14,0.1]
[1762180548047,17.04546811,175.15,175.14,5.80971793]
[1762180548241,9.78882769,175.15,175.14,5.80971793]
[1762180548462,0.69,175.21,175.14,6.47971793]
[1762180548658,7.25664042,175.18,175.14,20.75401277]
[1762180548963,9.78882769,175.21,175.16,19.98173098]